fUSD/lending_fUSD_20260326
["ID","MTS","AMOUNT","RATE_DAILY","PERIOD"]
[418930438,1774567898974,-150.0,0.00045283,30]
[418930439,1774567898985,-152.76356087,0.00045287,30]
[418930440,1774567898994,-364.90615692,0.00045287,30]
[418930441,1774567899006,-185.8894231,0.00045287,30]
[418930442,1774567899016,-150.0,0.00045296,30]
[418930443,1774567899025,-150.0,0.00045299,30]
[418930444,1774567899035,-150.0,0.00045299,30]
[418930445,1774567899043,-150.0,0.00045299,30]
[418930446,1774567899053,-156.92176638,0.000453,120]
[418930447,1774567899062,-150.0,0.00045311,30]
[418930448,1774567899071,-150.0,0.00045331,30]
[418930449,1774567899080,-152.76356087,0.00045334,30]
[418930450,1774567899090,-364.90615692,0.00045334,30]
[418930451,1774567899099,-185.8894231,0.00045334,30]
[418930452,1774567899108,-156.87210559,0.00045336,2]
[418930453,1774567899118,-150.0,0.0004535,30]
[418930454,1774567899127,-150.0,0.0004535,30]
[418930455,1774567899136,-150.0,0.0004536,30]
[418930456,1774567899146,-152.76356087,0.00045382,30]
[418930457,1774567899155,-364.90615692,0.00045382,30]
[418930458,1774567899165,-185.8894231,0.00045382,30]
[418930459,1774567899174,-30063.35210307,0.000454,30]
[418930460,1774567899183,-170.96297753,0.000454,120]
[418930461,1774567899193,-187.44288074,0.000454,120]
[418930462,1774567899202,-196.27454248,0.000454,120]
[418930463,1774567899211,-193.00068649,0.000454,120]
[418930464,1774567899220,-1000000.0,0.000454,120]
[418930465,1774567899229,-150.0,0.00045402,30]
[418930466,1774567899238,-150.0,0.00045402,30]
[418930467,1774567899247,-150.0,0.00045403,30]
[418930468,1774567899256,-150.0,0.00045407,30]
[418930469,1774567899265,-2500.0,0.00045422,2]
[418930470,1774567899275,-150.0,0.00045424,30]
[418930471,1774567899284,-152.76356087,0.0004543,30]
[418930472,1774567899294,-364.90615692,0.0004543,30]
[418930473,1774567899303,-185.8894231,0.0004543,30]
[418930474,1774567899312,-150.0,0.00045442,30]
[418930475,1774567899321,-150.0,0.00045446,120]
[418930476,1774567899330,-150.0,0.00045453,30]
[418930477,1774567899341,-150.0,0.00045453,30]
[418930478,1774567899350,-150.0,0.00045476,30]
[418930479,1774567899360,-504.0,0.00045477,29]
[418930480,1774567899369,-152.76356087,0.00045477,30]
[418930481,1774567899378,-364.90615692,0.00045477,30]
[418930482,1774567899388,-185.8894231,0.00045477,30]
[418930483,1774567899397,-500.0,0.00045479,120]
[418930484,1774567899406,-1000.0,0.00045479,2]
[418930485,1774567899415,-500.0,0.00045479,2]
[418930486,1774567899424,-150.0,0.00045479,2]
[418930487,1774567899434,-606.84544724,0.00045479,120]
[418930488,1774567899443,-537.28,0.00045479,120]
[418930489,1774567899452,-2100.82,0.00045479,120]
[418930490,1774567899461,-854.0,0.00045479,120]
[418930491,1774567899471,-150.0,0.00045488,30]
[418930492,1774567899480,-300.0,0.0004549,120]
[418930493,1774567899488,-200.0,0.0004549,15]
[418930494,1774567899498,-200.0,0.0004549,7]
[418930495,1774567899507,-150.0,0.00045496,120]
[418930496,1774567899516,-500000.0,0.00045499,120]
[418930497,1774567899525,-5000000.0,0.000455,120]
[418930498,1774567899534,-5000000.0,0.000455,120]
[418930499,1774567899543,-5000000.0,0.000455,120]
[418930500,1774567899552,-5000000.0,0.000455,120]
[418930501,1774567899561,-5000000.0,0.000455,120]
[418930502,1774567899570,-5000000.0,0.000455,120]
[418930503,1774567899579,-5000000.0,0.000455,120]
[418930504,1774567899588,-154.0,0.000455,120]
[418930505,1774567899598,-7206.55,0.000455,120]
[418930506,1774567899606,-4021.94,0.000455,120]
[418930507,1774567899615,-50000.0,0.000455,120]
[418930508,1774567899624,-194.31785779,0.000455,120]
[418930509,1774567899632,-2500.0,0.000455,120]
[418930510,1774567899641,-5441.1,0.000455,120]
[418930511,1774567899650,-154118.45561856,0.000455,30]
[418930512,1774567899659,-154118.45561856,0.000455,30]
[418930513,1774567899668,-838.15229394,0.000455,30]
[418930514,1774567899677,-507.87004936,0.000455,30]
[418930515,1774567899685,-8876.3,0.000455,120]
[418930516,1774567899694,-150.0,0.00045504,30]
[418930517,1774567899703,-150.0,0.00045504,30]
[418930518,1774567899713,-150.0,0.00045504,30]
[418930519,1774567899722,-152.76356087,0.00045525,30]
[418930520,1774567899731,-364.90615692,0.00045525,30]
[418930521,1774567899740,-185.8894231,0.00045525,30]
[418930522,1774567899749,-150.0,0.00045531,30]
[418930523,1774567899758,-150.0,0.00045548,30]
[418930524,1774567899766,-150.0,0.00045551,30]
[418930525,1774567899776,-150.0,0.00045555,30]
[418930526,1774567899785,-150.0,0.00045555,30]
[418930527,1774567899793,-362.72905046,0.00045556,30]
[418930528,1774567899802,-5642.8,0.00045556,90]
[418930529,1774567899811,-6297.47719909,0.00045559,30]
[418930530,1774567899820,-152.76356087,0.00045573,30]
[418930531,1774567899829,-364.90615692,0.00045573,30]
[418930532,1774567899839,-185.8894231,0.00045573,30]
[418930533,1774567899847,-150.0,0.00045573,30]
[418930534,1774567899857,-150.0,0.00045573,30]
[418930535,1774567899866,-150.0,0.00045573,30]
[418930536,1774567899875,-953534.0,0.000456,30]
[418930537,1774567899884,-1000.0,0.000456,30]
[418930538,1774567899892,-150.0,0.00045607,30]
[418930539,1774567899902,-150.0,0.00045607,30]
[418930540,1774567899910,-156.87210559,0.0004561,2]
[418930541,1774567899919,-150.0,0.00045615,30]
[418930542,1774567899930,-152.76356087,0.0004562,30]
[418930543,1774567899939,-364.90615692,0.0004562,30]
[418930544,1774567899948,-185.8894231,0.0004562,30]
[418930545,1774567899957,-150.0,0.00045621,30]
[418930546,1774567899966,-350.7840365,0.0004564,90]
[418930547,1774567899975,-150.0,0.00045655,30]
[418930548,1774567899984,-150.0,0.00045658,30]
[418930549,1774567899993,-150.0,0.00045658,30]
[418930550,1774567900002,-152.76356087,0.00045668,30]
[418930551,1774567900012,-364.90615692,0.00045668,30]
[418930552,1774567900022,-185.8894231,0.00045668,30]
[418930553,1774567900032,-475.22008835,0.0004567,120]
[418930554,1774567900041,-92574.73119301,0.00045672,6]
[418930555,1774567900050,-150.0,0.00045679,30]
[418930556,1774567900059,-3106.81,0.0004569,120]
[418930557,1774567900068,-150.0,0.00045693,30]
[418930558,1774567900078,-333654.88746933,0.000457,120]
[418930559,1774567900087,-4500.0,0.000457,30]
[418930560,1774567900096,-150.0,0.00045703,30]
[418930561,1774567900106,-150.0,0.00045709,30]
[418930562,1774567900116,-150.0,0.00045709,30]
[418930563,1774567900127,-150.0,0.00045709,30]
[418930564,1774567900136,-299.51481689,0.00045713,7]
[418930565,1774567900145,-152.76356087,0.00045715,30]
[418930566,1774567900155,-364.90615692,0.00045715,30]
[418930567,1774567900164,-185.8894231,0.00045715,30]
[418930568,1774567900173,-150.0,0.00045742,30]
[418930569,1774567900182,-250.0,0.00045751,113]
[418930570,1774567900191,-500.0,0.00045753,120]
[418930571,1774567900201,-1000.0,0.00045753,2]
[418930572,1774567900209,-500.0,0.00045753,2]
[418930573,1774567900219,-150.0,0.00045753,2]
[418930574,1774567900228,-537.28,0.00045753,120]
[418930575,1774567900237,-2100.82,0.00045753,120]
[418930576,1774567900246,-500.0,0.00045753,120]
[418930577,1774567900256,-500.0,0.00045753,120]
[418930578,1774567900265,-500.0,0.00045753,120]
[418930579,1774567900274,-500.0,0.00045753,120]
[418930580,1774567900283,-499.62427913,0.00045753,120]
[418930581,1774567900292,-500.0,0.00045753,120]
[418930582,1774567900301,-500.0,0.00045753,120]
[418930583,1774567900310,-500.0,0.00045753,120]
[418930584,1774567900319,-500.0,0.00045753,120]
[418930585,1774567900328,-500.0,0.00045753,120]
[418930586,1774567900337,-500.0,0.00045753,120]
[418930587,1774567900346,-500.0,0.00045753,120]
[418930588,1774567900355,-500.0,0.00045753,120]
[418930589,1774567900364,-500.0,0.00045753,120]
[418930590,1774567900373,-499.12331797,0.00045753,120]
[418930591,1774567900382,-500.0,0.00045753,120]
[418930592,1774567900391,-500.0,0.00045753,120]
[418930593,1774567900400,-500.0,0.00045753,120]
[418930594,1774567900409,-500.0,0.00045753,120]
[418930595,1774567900418,-500.0,0.00045753,120]
[418930596,1774567900427,-150.0,0.0004576,30]
[418930597,1774567900437,-150.0,0.0004576,30]
[418930598,1774567900447,-152.76356087,0.00045763,30]
[418930599,1774567900456,-364.90615692,0.00045763,30]
[418930600,1774567900465,-185.8894231,0.00045763,30]
[418930601,1774567900474,-150.0,0.00045766,30]
[418930602,1774567900483,-1640.97,0.00045766,2]
[418930603,1774567900492,-420.163789,0.0004577,120]
[418930604,1774567900501,-150.0,0.00045779,30]
[418930605,1774567900511,-173.60069742,0.000458,30]
[418930606,1774567900520,-12329.29876818,0.000458,120]
[418930607,1774567900529,-1133.8,0.000458,30]
[418930608,1774567900538,-62560.98222729,0.000458,30]
[418930609,1774567900547,-382.61,0.000458,120]
[418930610,1774567900557,-150.0,0.00045806,30]
[418930611,1774567900566,-152.76356087,0.00045811,30]
[418930612,1774567900575,-364.90615692,0.00045811,30]
[418930613,1774567900584,-185.8894231,0.00045811,30]
[418930614,1774567900593,-150.0,0.00045812,30]
[418930615,1774567900602,-150.0,0.00045812,30]
[418930616,1774567900612,-10601.54862461,0.00045826,120]
[418930617,1774567900621,-150.0,0.00045834,30]
[418930618,1774567900630,-150.0,0.00045838,30]
[418930619,1774567900640,-152.76356087,0.00045858,30]
[418930620,1774567900649,-364.90615692,0.00045858,30]
[418930621,1774567900658,-185.8894231,0.00045858,30]
[418930622,1774567900667,-150.0,0.00045863,30]
[418930623,1774567900676,-150.0,0.00045863,30]
[418930624,1774567900685,-2737.3363,0.00045864,30]
[418930625,1774567900694,-1490.02147417,0.00045865,30]
[418930626,1774567900703,-150.0,0.0004587,30]
[418930627,1774567900713,-225.48523984,0.0004587,30]
[418930628,1774567900722,-3705.49219042,0.00045875,60]
[418930629,1774567900730,-156.87210559,0.00045884,2]
[418930630,1774567900739,-150.0,0.00045894,120]
[418930631,1774567900748,-489.0,0.000459,120]
[418930632,1774567900757,-1000.0,0.000459,30]
[418930633,1774567900766,-151.00010636,0.000459,120]
[418930634,1774567900775,-151.00010625,0.000459,120]
[418930635,1774567900784,-151.00010625,0.000459,120]
[418930636,1774567900793,-151.00010625,0.000459,120]
[418930637,1774567900801,-151.00010625,0.000459,120]
[418930638,1774567900810,-151.00010625,0.000459,120]
[418930639,1774567900819,-151.00010625,0.000459,120]
[418930640,1774567900828,-151.00010625,0.000459,120]
[418930641,1774567900837,-151.00010625,0.000459,120]
[418930642,1774567900846,-151.00010625,0.000459,120]
[418930643,1774567900855,-151.00010625,0.000459,120]
[418930644,1774567900865,-151.00010625,0.000459,120]
[418930645,1774567900874,-151.00010625,0.000459,120]
[418930646,1774567900883,-151.00010625,0.000459,120]
[418930647,1774567900893,-151.00010625,0.000459,120]
[418930648,1774567900902,-421.10828575,0.000459,30]
[418930649,1774567900911,-3110.45164828,0.000459,7]
[418930650,1774567900920,-150.0,0.00045903,30]
[418930651,1774567900930,-3106.81,0.00045903,120]
[418930652,1774567900939,-152.76356087,0.00045906,30]
[418930653,1774567900949,-364.90615692,0.00045906,30]
[418930654,1774567900959,-185.8894231,0.00045906,30]
[418930655,1774567900968,-1390.20471447,0.00045908,30]
[418930656,1774567900977,-150.0,0.00045911,30]
[418930657,1774567900986,-150.0,0.00045914,30]
[418930658,1774567900997,-150.0,0.00045914,30]
[418930659,1774567901007,-150.0,0.00045914,30]
[418930660,1774567901018,-243.47489407,0.00045916,30]
[418930661,1774567901028,-150.0,0.00045934,30]
[418930662,1774567901036,-291.95381035,0.00045942,30]
[418930663,1774567901048,-7469.95708584,0.00045942,30]
[418930664,1774567901058,-152.76356087,0.00045953,30]
[418930665,1774567901067,-364.90615692,0.00045953,30]
[418930666,1774567901077,-185.8894231,0.00045953,30]
[418930667,1774567901087,-150.0,0.00045965,30]
[418930668,1774567901096,-150.0,0.00045965,30]
[418930669,1774567901106,-150.0,0.00045965,30]
[418930670,1774567901115,-150.0,0.00045965,30]
[418930671,1774567901125,-176.7563056,0.00045967,30]
[418930672,1774567901134,-8712.85894499,0.00045977,30]
[418930673,1774567901143,-556.05613849,0.00045979,18]
[418930674,1774567901152,-556.05613847,0.00045979,18]
[418930675,1774567901162,-556.05613847,0.00045979,18]
[418930676,1774567901171,-556.05613847,0.00045979,18]
[418930677,1774567901180,-556.05613847,0.00045979,18]
[418930678,1774567901190,-556.05613847,0.00045979,18]
[418930679,1774567901199,-556.05613847,0.00045979,18]
[418930680,1774567901208,-556.05613847,0.00045979,18]
[418930681,1774567901219,-556.05613847,0.00045979,18]
[418930682,1774567901228,-556.05613847,0.00045979,18]
[418930683,1774567901237,-556.05613847,0.00045979,18]
[418930684,1774567901247,-556.05613847,0.00045979,18]
[418930685,1774567901256,-556.05613847,0.00045979,18]
[418930686,1774567901266,-556.05613847,0.00045979,18]
[418930687,1774567901275,-150.0,0.00045984,30]
[418930688,1774567901284,-2950.731182,0.00045984,7]
[418930689,1774567901293,-532.45,0.00045984,120]
[418930690,1774567901302,-713.57,0.00045984,120]
[418930691,1774567901311,-337.74,0.00045984,120]
[418930692,1774567901321,-2045.44,0.00045984,120]
[418930693,1774567901330,-1514.81,0.00045984,120]
[418930694,1774567901339,-2362.48,0.00045984,120]
[418930695,1774567901348,-1874.18,0.00045984,120]
[418930696,1774567901358,-947.47,0.00045984,120]
[418930697,1774567901367,-1489.74,0.00045984,120]
[418930698,1774567901376,-473.97,0.00045984,120]
[418930699,1774567901385,-2852.08,0.00045984,120]
[418930700,1774567901394,-794.22,0.00045984,120]
[418930701,1774567901404,-1744.14,0.00045984,120]
[418930702,1774567901413,-2482.77,0.00045984,120]
[418930703,1774567901422,-945.0,0.00045984,120]
[418930704,1774567901432,-1456.55639854,0.0004599,30]
[418930705,1774567901442,-150.0,0.00045997,30]
[418930706,1774567901451,-297.98607886,0.00045999,120]
[418930707,1774567901461,-22000.0,0.00046,120]
[418930708,1774567901470,-22000.0,0.00046,120]
[418930709,1774567901479,-447178.14627381,0.00046,30]
[418930710,1774567901489,-1759.80091756,0.00046,120]
[418930711,1774567901498,-158.47459141,0.00046,30]
[418930712,1774567901507,-307.56736907,0.00046,2]
[418930713,1774567901517,-210061.55,0.00046,120]
[418930714,1774567901526,-3448.54403295,0.00046,120]
[418930715,1774567901535,-10000.0,0.00046,120]
[418930716,1774567901544,-500.0,0.00046,60]
[418930717,1774567901554,-500.0,0.00046,30]
[418930718,1774567901563,-3964.84122142,0.00046,30]
[418930719,1774567901572,-1544.93375962,0.00046,30]
[418930720,1774567901581,-1000000.0,0.00046,120]
[418930721,1774567901590,-530.94977027,0.00046,120]
[418930722,1774567901601,-380.73370802,0.00046,90]
[418930723,1774567901612,-1168.49062885,0.00046,7]
[418930724,1774567901622,-1168.49062885,0.00046,7]
[418930725,1774567901632,-1168.49062885,0.00046,7]
[418930726,1774567901643,-1168.49062885,0.00046,7]
[418930727,1774567901799,-1168.49062885,0.00046,7]
[418930728,1774567901810,-1667.0,0.00046,30]
[418930729,1774567901820,-5669.05388,0.00046,120]
[418930730,1774567901829,-10021.01659987,0.00046,120]
[418930731,1774567901839,-250.54604072,0.00046,120]
[418930732,1774567901848,-1000.0,0.00046,120]
[418930733,1774567901857,-304123.22704971,0.00046,30]
[418930734,1774567901867,-1397.29304907,0.00046,30]
[418930735,1774567901876,-154.0,0.00046,120]
[418930736,1774567901885,-1840.30349089,0.00046,30]
[418930737,1774567901895,-19779.90408633,0.00046,120]
[418930738,1774567901905,-644.081,0.00046,120]
[418930739,1774567901915,-934.05467318,0.00046,120]
[418930740,1774567901924,-511.24569794,0.00046,120]
[418930741,1774567901934,-362.74,0.00046,10]
[418930742,1774567901944,-2090.87130597,0.00046,120]
[418930743,1774567901953,-202300.0,0.00046,30]
[418930744,1774567901963,-7350.68,0.00046,120]
[418930745,1774567901973,-4102.38,0.00046,120]
[418930746,1774567901982,-50000.0,0.00046,120]
[418930747,1774567901992,-1109.22087064,0.00046,120]
[418930748,1774567902002,-585.82715985,0.00046,120]
[418930749,1774567902011,-3736.63,0.00046,2]
[418930750,1774567902021,-30010.03097029,0.00046,30]
[418930751,1774567902030,-28174.0,0.00046,120]
[418930752,1774567902039,-202543.68504977,0.00046,120]
[418930753,1774567902049,-150.36135519,0.00046,30]
[418930754,1774567902058,-231.12720748,0.00046,30]
[418930755,1774567902068,-1313.97533354,0.00046,120]
[418930756,1774567902077,-500.0,0.00046,45]
[418930757,1774567902087,-182.8678006,0.00046,45]
[418930758,1774567902097,-459.0,0.00046,30]
[418930759,1774567902106,-152.76356087,0.00046001,30]
[418930760,1774567902116,-364.90615692,0.00046001,30]
[418930761,1774567902126,-185.8894231,0.00046001,30]
[418930762,1774567902135,-150.0,0.00046017,30]
[418930763,1774567902145,-150.0,0.00046017,30]
[418930764,1774567902159,-500.0,0.00046027,120]
[418930765,1774567902168,-1000.0,0.00046027,2]
[418930766,1774567902177,-500.0,0.00046027,2]
[418930767,1774567902187,-150.0,0.00046027,2]
[418930768,1774567902196,-537.28,0.00046027,120]
[418930769,1774567902206,-2100.82,0.00046027,120]
[418930770,1774567902215,-854.0,0.00046027,120]
[418930771,1774567902226,-150.0,0.00046027,30]
[418930772,1774567902235,-225.26,0.00046034,30]
[418930773,1774567902244,-250.0,0.0004604,117]
[418930774,1774567902254,-152.76356087,0.00046049,30]
[418930775,1774567902264,-364.90615692,0.00046049,30]
[418930776,1774567902273,-185.8894231,0.00046049,30]
[418930777,1774567902282,-150.0,0.00046056,30]
[418930778,1774567902292,-150.0,0.00046061,30]
[418930779,1774567902301,-150.0,0.00046068,30]
[418930780,1774567902311,-150.0,0.00046068,30]
[418930781,1774567902320,-11068.9178663,0.0004607,7]
[418930782,1774567902330,-152.76356087,0.00046096,30]
[418930783,1774567902339,-364.90615692,0.00046096,30]
[418930784,1774567902348,-185.8894231,0.00046096,30]
[418930785,1774567902357,-150.0,0.00046096,30]
[418930786,1774567902367,-150.0,0.00046096,30]
[418930787,1774567902376,-25030.0,0.000461,120]
[418930788,1774567902385,-10000.0,0.000461,30]
[418930789,1774567902395,-25000.0,0.000461,60]
[418930790,1774567902407,-150.0,0.00046114,120]
[418930791,1774567902417,-3106.81,0.00046117,120]
[418930792,1774567902428,-150.0,0.00046119,30]
[418930793,1774567902437,-150.0,0.00046119,30]
[418930794,1774567902447,-150.0,0.00046119,30]
[418930795,1774567902458,-150.0,0.00046125,30]
[418930796,1774567902467,-150.0,0.00046129,30]
[418930797,1774567902476,-250.0,0.0004614,119]
[418930798,1774567902486,-1476.34,0.00046143,30]
[418930799,1774567902495,-43178.24423655,0.00046143,9]
[418930800,1774567902504,-152.76356087,0.00046144,30]
[418930801,1774567902514,-364.90615692,0.00046144,30]
[418930802,1774567902523,-185.8894231,0.00046144,30]
[418930803,1774567902532,-151.0,0.00046144,60]
[418930804,1774567902542,-150.0,0.00046151,30]
[418930805,1774567902552,-156.87210559,0.00046158,2]
[418930806,1774567902562,-150.0,0.0004617,30]
[418930807,1774567902571,-150.0,0.0004617,30]
[418930808,1774567902580,-250.0,0.00046175,120]
[418930809,1774567902590,-250.0,0.00046188,120]
[418930810,1774567902599,-150.0,0.00046188,30]
[418930811,1774567902609,-152.76356087,0.00046192,30]
[418930812,1774567902618,-364.90615692,0.00046192,30]
[418930813,1774567902628,-185.8894231,0.00046192,30]
[418930814,1774567902638,-200.0,0.00046192,120]
[418930815,1774567902648,-200.0,0.00046192,120]
[418930816,1774567902657,-200.2,0.00046192,120]
[418930817,1774567902666,-250.0,0.00046192,120]
[418930818,1774567902675,-250.0,0.00046192,120]
[418930819,1774567902685,-250.0,0.00046192,120]
[418930820,1774567902695,-250.0,0.00046192,120]
[418930821,1774567902704,-250.0,0.00046192,120]
[418930822,1774567902713,-313.92,0.00046192,120]
[418930823,1774567902722,-326.29280135,0.000462,120]
[418930824,1774567902732,-4548.3006362,0.000462,30]
[418930825,1774567902741,-1446.8546,0.000462,30]
[418930826,1774567902750,-1418.28565,0.000462,30]
[418930827,1774567902759,-4050.2,0.000462,120]
[418930828,1774567902768,-3920.99924199,0.000462,31]
[418930829,1774567902777,-593.65,0.000462,120]
[418930830,1774567902788,-150.0,0.00046201,30]
[418930831,1774567902800,-150.0,0.00046201,30]
[418930832,1774567902812,-684.51602931,0.00046208,120]
[418930833,1774567902823,-150.0,0.00046222,30]
[418930834,1774567902833,-150.0,0.00046222,30]
[418930835,1774567902844,-150.0,0.00046227,30]
[418930836,1774567902855,-152.76356087,0.00046239,30]
[418930837,1774567902866,-364.90615692,0.00046239,30]
[418930838,1774567902876,-185.8894231,0.00046239,30]
[418930839,1774567902886,-188.49,0.0004625,120]
[418930840,1774567902897,-150.0,0.00046252,30]
[418930841,1774567902908,-28300.0,0.00046253,120]
[418930842,1774567902919,-150.0,0.00046273,30]
[418930843,1774567902929,-150.0,0.00046273,30]
[418930844,1774567902938,-150.0,0.00046274,30]
[418930845,1774567902947,-150.0,0.00046276,30]
[418930846,1774567902956,-152.76356087,0.00046287,30]
[418930847,1774567902966,-364.90615692,0.00046287,30]
[418930848,1774567902976,-185.8894231,0.00046287,30]
[418930849,1774567902985,-142104.44,0.000463,120]
[418930850,1774567902994,-10020.0,0.000463,120]
[418930851,1774567903004,-37340.37710801,0.000463,120]
[418930852,1774567903291,-3411.57817406,0.000463,120]
[418930853,1774567903303,-1973.8762896,0.000463,120]
[418930854,1774567903319,-415.0,0.00026741,2]
[418930855,1774567903329,-1092.56,0.000463,120]
[418930856,1774567903534,-151.0,0.000159,2]
[418930857,1774567903544,-151.0,0.00015973,2]
[418930858,1774567903554,-151.0,0.0001599,2]
[418930859,1774567903563,-151.0,0.00015999,2]
[418930860,1774567903573,-255.0,0.00016111,2]
[418930861,1774567903582,-603.0,0.00016111,2]
[418930862,1774567903593,-2000.0,0.000164,2]
[418930863,1774567903603,-2000.0,0.000165,2]
[418930864,1774567903612,-2000.0,0.000166,2]
[418930865,1774567903621,-289.1167852,0.000167,2]
[418930866,1774567903639,-729.97610713,0.00014728,2]
[418930867,1774567903648,-1710.8832148,0.000167,2]
[418930868,1774567903658,-1568.29582195,0.000168,2]
[418930870,1774567979949,2292.02,0.00017,60]
[418930875,1774568584763,30000.0,0.0001422,5]
[418930879,1774569031838,-990.2898,0.00013163,2]
[418930880,1774569031848,-564.0377,0.00013163,2]
[418930881,1774569031857,-300.0,0.00013261,2]
[418930882,1774569031866,-300.0,0.00013261,2]
[418930883,1774569031876,-1200.0,0.00013261,2]
[418930884,1774569031885,-657.16251972,0.00013263,2]
[418930885,1774569031953,-342.83748028,0.00013263,2]
[418930886,1774569031963,-2583.2566024,0.000137,2]
[418930887,1774569031976,-811.50471421,0.000137,2]
[418930888,1774569031987,-250.0,0.000137,2]
[418930889,1774569032087,-512.89723022,0.000137,2]
[418930890,1774569032096,-291.99044287,0.000138,2]
[418930891,1774569032106,-449.54382398,0.000139,2]
[418930892,1774569032115,-500.0,0.000139,2]
[418930893,1774569032126,-500.0,0.000139,2]
[418930895,1774569032135,-19.61816423,0.000139,2]
[418930897,1774569032147,-480.38183577,0.000139,2]
[418930899,1774569032156,-369.61816423,0.000139,2]
[418930903,1774569038040,-133.13860176,0.000139,2]
[418930904,1774569038050,-504.0,0.00014,2]
[418930905,1774569038059,-300.0,0.00014479,2]
[418930906,1774569038068,-162.86139824,0.00014479,2]
[418930907,1774569038081,-137.13860176,0.00014479,2]
[418930908,1774569038090,-300.0,0.00014479,2]
[418930909,1774569038099,-300.0,0.00014479,2]
[418930910,1774569038108,-16.11276807,0.00014479,2]
[418930911,1774569038132,-283.88723193,0.00014479,2]
[418930912,1774569038141,-187.98643152,0.00014479,2]
[418930913,1774569038153,-412.01356848,0.00014479,2]
[418930914,1774569038162,-600.0,0.00014479,2]
[418930915,1774569038171,-600.0,0.00014479,2]
[418930916,1774569038180,-600.0,0.00014479,2]
[418930917,1774569038189,-600.0,0.00014479,2]
[418930918,1774569038198,-500.0,0.00014479,2]
[418930919,1774569038207,-500.0,0.00014479,2]
[418930920,1774569038216,-500.0,0.00014479,2]
[418930922,1774569038226,-500.0,0.00014479,2]
[418930924,1774569038235,-500.0,0.00014479,2]
[418930925,1774569038244,-2500.0,0.00014479,2]
[418930928,1774569038254,-2500.0,0.00014479,2]
[418930930,1774569038263,-2500.0,0.00014479,2]
[418930932,1774569038272,-2500.0,0.00014479,2]
[418930934,1774569038281,-2500.0,0.00014479,2]
[418930936,1774569038290,-504.0,0.00016,3]
[418930938,1774569038300,-319.0,0.00016111,2]
[418930940,1774569038311,-753.0,0.00016111,2]
[418930942,1774569038320,-545.41640847,0.000165,2]
[418930944,1774569038329,-494.17167578,0.00016532,2]
[418930946,1774569038338,-2000.0,0.000166,2]
[418930948,1774569038348,-2000.0,0.000167,2]
[418930950,1774569038357,-2000.0,0.000168,2]
[418930952,1774569038366,-911.69170403,0.000169,2]
[418930954,1774569038378,-470.60992569,0.000169,2]
[418930957,1774569038399,-331.43,0.000169,2]
[418930979,1774569040256,-565.0,0.000169,2]
[418930980,1774569040267,-286.26837028,0.000169,2]
[418930981,1774569040276,-63.42707833,0.00016922,2]
[418930982,1774569040922,-953.0,0.000169,2]
[418930983,1774569040932,-3377.0349061,0.00016922,2]
[418930984,1774569040945,-3198.82868942,0.00016922,2]
[418930985,1774569040957,-651.84043958,0.00016922,2]
[418930986,1774569040969,-755.78888657,0.00016922,2]
[418930987,1774569040979,-4157.65854677,0.00017267,2]
[418930988,1774569040989,-291.99044285,0.00017389,2]
[418930989,1774569041284,-3516.0,0.00017757,2]
[418930990,1774569041295,-1045.0,0.00017757,2]
[418930991,1774569041309,-1345.0,0.00017757,2]